Workbook

Sheet титульник
A1: Утверждаю
A2: Директор ОГБПОУ "ДМК"
A5: И.А.Казаченко | O5: УЧЕБНЫЙ ПЛАН
O7: программы подготовки специалистов среднего звена
A9: Приказ № 121 - у от 30.06.2023
O11: Областное государственное бюджетное профессиональное образовательное учреждение "Димитровградский музыкальный колледж"
A14: Рассмотрено Педагогическим Советом Протокол № 08 от 30.06.2023
O15: наименование образовательного учреждения (организации)
O18: по специальности среднего профессионального образования
O20: 53.02.03 | U20: Инструментальное исполнительство (по видам инструментов) Фортепиано
O21: код | U21: наименование специальности
O22: по программе углубленной подготовки | AE22: на базе | AI22: основного общего образования
O24: квалификация | U24: Артист, преподаватель, концертмейстер
O26: форма обучения | U26: Очная
O28: нормативный срок освоения ППССЗ | AB28: 3г 10м | AI28: год начала подготовки по УП | AS28: 2023
O30: профиль получаемого профессионального образования | AI30: Искусство и культура 53.00.00 Музыкальное искусство
AI31: при реализации программы среднего (полного) общего образования
O33: Приказ об утверждении ФГОС | Z33: от | AB33: 2021-05-17 | AG33: № | AI33: 253

Sheet сводные данные
A1: 2 Сводные данные по бюджету времени
A2: Курс | B2: Обучение по дисциплинам и междисциплинарным курсам | T2: Промежуточная аттестация | AC2: Практики | AT2: ГИА | AZ2: Каникулы | BC2: Всего
AC3: Учебная практика | AF3: Производственная практика (по профилю специальности) | AM3: Производственная практика (преддипломная) | AT3: Подго- товка | AW3: Прове- дение
B4: Всего | H4: 1 сем | N4: 2 сем | T4: Всего | W4: 1 сем | Z4: 2 сем | AC4: Всего | AF4: Всего | AI4: 1 сем | AK4: 2 сем | AM4: Всего | AP4: 1 сем | AR4: 2 сем
B5: нед. | E5: час. | H5: нед. | K5: час. | N5: нед. | Q5: час. | T5: нед. | W5: нед. | Z5: нед. | AC5: нед. | AF5: нед. | AI5: нед. | AK5: нед. | AM5: нед. | AP5: нед. | AR5: нед. | AT5: нед. | AW5: нед. | AZ5: нед. | BC5: нед.
A6: I | B6: 36 | E6: 1945/1296 | H6: 16 | K6: 864/576 | N6: 20 | Q6: 1081/720 | T6: 4 | W6: 2 | Z6: 2 | AF6: 1 | AK6: 1 | AZ6: 2 | BC6: 43
A7: II | B7: 36 | E7: 1942/1296 | H7: 16 | K7: 862/576 | N7: 20 | Q7: 1080/720 | T7: 4 | W7: 2 | Z7: 2 | AF7: 2 | AK7: 2 | AZ7: 11 | BC7: 53
A8: III | B8: 36 | E8: 1945/1296 | H8: 16 | K8: 864/576 | N8: 20 | Q8: 1081/720 | T8: 4 | W8: 2 | Z8: 2 | AF8: 2 | AK8: 2 | AZ8: 10 | BC8: 52
A9: IV | B9: 35 | E9: 1890/1260 | H9: 16 | K9: 864/576 | N9: 19 | Q9: 1026/684 | T9: 1 | W9: 1 | AM9: 1 | AP9: 1 | AT9: 1 | AW9: 3 | AZ9: 10 | BC9: 51
A10: Всего | B10: 143 | E10: 7722/5148 | K10: 3454/2304 | Q10: 4268/2844 | T10: 13 | AC10: 19 | AF10: 5 | AM10: 1 | AT10: 1 | AW10: 3 | AZ10: 33 | BC10: 199

Sheet План
A1: Индекс | B1: Наименование циклов, разделов, дисциплин, профессиональных модулей, МДК, практик | C1: Групповые, мелкогрупповые, индивидуальные формы занятий | D1: Формы промежуточной аттестации | K1: Учебная нагрузка обучающихся, ч. | U1: Распределение по курсам и семестрам | EC1: Максимальная учебная нагрузка
U2: Курс 1 | AI2: Курс 2 | AW2: Курс 3 | BK2: Курс 4 | BY2: Курс 5 | CM2: Курс 6 | DA2: Курс 7 | DO2: Курс 8
D3: Экзамены | E3: Зачеты | F3: Диффер. зачеты | G3: Курсовые проекты (работы) | H3: Итоговые письм. КР | I3: Домашние КР | J3: Другие формы контроля | L3: Максимальная | N3: Самостоятельная | P3: Обязательная | U3: Семестр 1 | AB3: Семестр 2 | AI3: Семестр 3 | AP3: Семестр 4 | AW3: Семестр 5 | BD3: Семестр 6 | BK3: Семестр 7 | BR3: Семестр 8 | BY3: Семестр 9 | CF3: Семестр A | CM3: Семестр B | CT3: Семестр C | DA3: Семестр D | DH3: Семестр E | DO3: Семестр F | DV3: Семестр G
P4: Всего | Q4: в том числе | U4: 26 нед | AB4: 26 нед | AI4: 26 нед | AP4: 26 нед | AW4: 26 нед | BD4: 26 нед | BK4: 26 нед | BR4: 26 нед | BY4: 26 нед | CF4: 26 нед | CM4: 26 нед | CT4: 26 нед | DA4: 26 нед | DH4: 26 нед | DO4: нед | DV4: нед
Q5: Теор. обучение | R5: Лаб. и пр. занятия | T5: Курс. проект. | U5: Максим. | V5: Самост. | W5: Всего | X5: в том числе | AB5: Максим. | AC5: Самост. | AD5: Всего | AE5: в том числе | AI5: Максим. | AJ5: Самост. | AK5: Всего | AL5: в том числе | AP5: Максим. | AQ5: Самост. | AR5: Всего | AS5: в том числе | AW5: Максим. | AX5: Самост. | AY5: Всего | AZ5: в том числе | BD5: Максим. | BE5: Самост. | BF5: Всего | BG5: в том числе | BK5: Максим. | BL5: Самост. | BM5: Всего | BN5: в том числе | BR5: Максим. | BS5: Самост. | BT5: Всего | BU5: в том числе | BY5: Максим. | BZ5: Самост. | CA5: Всего | CB5: в том числе | CF5: Максим. | CG5: Самост. | CH5: Всего | CI5: в том числе | CM5: Максим. | CN5: Самост. | CO5: Всего | CP5: в том числе | CT5: Максим. | CU5: Самост. | CV5: Всего | CW5: в том числе | DA5: Максим. | DB5: Самост. | DC5: Всего | DD5: в том числе | DH5: Максим. | DI5: Самост. | DJ5: Всего | DK5: в том числе | DO5: Максим. | DP5: Самост. | DQ5: Всего | DR5: в том числе | DV5: Максим. | DW5: Самост. | DX5: Всего | DY5: в том числе | EC5: Обяз. часть | ED5: Вар. часть
X6: Теор. обучение | Y6: Лаб. и пр. занятия | Z6: Лаб. занятия | AA6: Курс. проект. | AE6: Теор. обучение | AF6: Лаб. и пр. занятия | AG6: Лаб. занятия | AH6: Курс. проект. | AL6: Теор. обучение | AM6: Лаб. и пр. занятия | AN6: Лаб. занятия | AO6: Курс. проект. | AS6: Теор. обучение | AT6: Лаб. и пр. занятия | AU6: Лаб. занятия | AV6: Курс. проект. | AZ6: Теор. обучение | BA6: Лаб. и пр. занятия | BB6: Лаб. занятия | BC6: Курс. проект. | BG6: Теор. обучение | BH6: Лаб. и пр. занятия | BI6: Лаб. занятия | BJ6: Курс. проект. | BN6: Теор. обучение | BO6: Лаб. и пр. занятия | BP6: Лаб. занятия | BQ6: Курс. проект. | BU6: Теор. обучение | BV6: Лаб. и пр. занятия | BW6: Лаб. занятия | BX6: Курс. проект. | CB6: Теор. обучение | CC6: Лаб. и пр. занятия | CD6: Лаб. занятия | CE6: Курс. проект. | CI6: Теор. обучение | CJ6: Лаб. и пр. занятия | CK6: Лаб. занятия | CL6: Курс. проект. | CP6: Теор. обучение | CQ6: Лаб. и пр. занятия | CR6: Лаб. занятия | CS6: Курс. проект. | CW6: Теор. обучение | CX6: Лаб. и пр. занятия | CY6: Лаб. занятия | CZ6: Курс. проект. | DD6: Теор. обучение | DE6: Лаб. и пр. занятия | DF6: Лаб. занятия | DG6: Курс. проект. | DK6: Теор. обучение | DL6: Лаб. и пр. занятия | DM6: Лаб. занятия | DN6: Курс. проект. | DR6: Теор. обучение | DS6: Лаб. и пр. занятия | DT6: Лаб. занятия | DU6: Курс. проект. | DY6: Теор. обучение | DZ6: Лаб. и пр. занятия | EA6: Лаб. занятия | EB6: Курс. проект.
A7: 1 | B7: 2 | C7: 3 | D7: 4 | E7: 5 | F7: 6 | G7: 6 | H7: 7 | I7: 8 | J7: 7 | K7: 10 | L7: 8 | M7: 12 | N7: 9 | O7: 14 | P7: 10 | Q7: 11 | R7: 12 | S7: 18 | T7: 13 | U7: 20 | V7: 14 | W7: 15 | X7: 16 | Y7: 17 | Z7: 25 | AA7: 18 | AB7: 27 | AC7: 19 | AD7: 20 | AE7: 21 | AF7: 22 | AG7: 32 | AH7: 23 | AI7: 34 | AJ7: 24 | AK7: 25 | AL7: 26 | AM7: 27 | AN7: 39 | AO7: 28 | AP7: 41 | AQ7: 29 | AR7: 30 | AS7: 31 | AT7: 32 | AU7: 46 | AV7: 33 | AW7: 48 | AX7: 34 | AY7: 35 | AZ7: 36 | BA7: 37 | BB7: 53 | BC7: 38 | BD7: 55 | BE7: 39 | BF7: 40 | BG7: 41 | BH7: 42 | BI7: 60 | BJ7: 43 | BK7: 62 | BL7: 44 | BM7: 45 | BN7: 46 | BO7: 47 | BP7: 67 | BQ7: 48 | BR7: 69 | BS7: 49 | BT7: 50 | BU7: 51 | BV7: 52 | BW7: 74 | BX7: 53 | BY7: 76 | BZ7: 77 | CA7: 78 | CB7: 79 | CC7: 80 | CD7: 81 | CE7: 82 | CF7: 83 | CG7: 84 | CH7: 85 | CI7: 86 | CJ7: 87 | CK7: 88 | CL7: 89 | CM7: 90 | CN7: 91 | CO7: 92 | CP7: 93 | CQ7: 94 | CR7: 95 | CS7: 96 | CT7: 97 | CU7: 98 | CV7: 99 | CW7: 100 | CX7: 101 | CY7: 102 | CZ7: 103 | DA7: 104 | DB7: 105 | DC7: 106 | DD7: 107 | DE7: 108 | DF7: 109 | DG7: 110 | DH7: 111 | DI7: 112 | DJ7: 113 | DK7: 114 | DL7: 115 | DM7: 116 | DN7: 117 | DO7: 118 | DP7: 119 | DQ7: 120 | DR7: 121 | DS7: 122 | DT7: 123 | DU7: 124 | DV7: 125 | DW7: 126 | DX7: 127 | DY7: 128 | DZ7: 129 | EA7: 130 | EB7: 131 | EC7: 54 | ED7: 55
B8: час/нед | U8: 31.5 | W8: =W9/16 -> 21 | AB8: 31.5 | AD8: =AD9/20 -> 21 | AI8: 22.5 | AK8: =AK9/16 -> 15 | AP8: 22.5 | AR8: =AR9/20 -> 15 | AW8: 4.5 | AY8: =AY9/16 -> 3 | BD8: 4.5 | BF8: =BF9/20 -> 3 | BM8: =BM9/16 -> 0 | BT8: =BT9/19 -> 0 | BY8: NaN | CA8: NaN | CF8: NaN | CH8: NaN | CM8: NaN | CO8: NaN | CT8: NaN | CV8: NaN | DA8: NaN | DC8: NaN | DH8: NaN | DJ8: NaN | DO8: NaN | DQ8: NaN | DV8: NaN | DX8: NaN
A9: ОУЦ.00 | B9: Общеобразовательный учебный цикл | D9: 3 | E9: 4 | F9: 6 | J9: 14 | L9: 2106 | M9: 0 | N9: 702 | O9: 0 | P9: 1404 | Q9: 1276 | R9: 128 | U9: 504 | V9: 168 | W9: 336 | X9: 320 | Y9: 16 | AA9: 0 | AC9: 210 | AD9: 420 | AE9: 380 | AF9: 40 | AH9: 0 | AJ9: 120 | AK9: 240 | AL9: 208 | AM9: 32 | AO9: 0 | AQ9: 150 | AR9: 300 | AS9: 260 | AT9: 40 | AV9: 0 | AX9: =AX10+AX24 -> 24 | AY9: =AY10+AY24 -> 48 | AZ9: =AZ10+AZ24 -> 48 | BA9: =BA10+BA24 -> 0 | BC9: =BC10+BC24 -> 0 | BE9: =BE10+BE24 -> 30 | BF9: =BF10+BF24 -> 60 | BG9: =BG10+BG24 -> 60 | BH9: =BH10+BH24 -> 0 | BJ9: =BJ10+BJ24 -> 0 | BL9: =BL10+BL24 -> 0 | BM9: =BM10+BM24 -> 0 | BN9: =BN10+BN24 -> 0 | BO9: =BO10+BO24 -> 0 | BQ9: =BQ10+BQ24 -> 0 | BS9: =BS10+BS24 -> 0 | BT9: =BT10+BT24 -> 0 | BU9: =BU10+BU24 -> 0 | BV9: =BV10+BV24 -> 0 | BX9: =BX10+BX24 -> 0 | EC9: 1404 | ED9: =ED10+ED24 -> 0
A10: ОУП.00 | B10: Обязательный учебные предметы | D10: 3 | E10: 4 | F10: 6 | J10: 14 | L10: 1134 | M10: 0 | N10: 378 | O10: 0 | P10: 756 | Q10: 628 | R10: 128 | U10: 264 | V10: 88 | W10: 176 | X10: 160 | Y10: 16 | Z10: 0 | AA10: 0 | AB10: 330 | AC10: 110 | AD10: 220 | AE10: 180 | AF10: 40 | AG10: 0 | AH10: 0 | AI10: 240 | AJ10: 80 | AK10: 160 | AL10: 128 | AM10: 32 | AN10: 0 | AO10: 0 | AP10: 300 | AQ10: 100 | AR10: 200 | AS10: 160 | AT10: 40 | AU10: 0 | AV10: 0 | AW10: =SUM(AW11:AW19) -> 0 | AX10: =SUM(AX11:AX22) -> 24 | AY10: 48 | AZ10: 48 | BA10: 0 | BB10: 0 | BC10: 0 | BD10: 90 | BE10: 30 | BF10: 60 | BG10: 60 | BH10: 0 | BI10: 0 | BJ10: 0 | BK10: 0 | BL10: 0 | BM10: 0 | BN10: 0 | BO10: 0 | BP10: 0 | BQ10: 0 | BR10: 0 | BS10: 0 | BT10: 0 | BU10: 0 | BV10: 0 | BW10: 0 | BX10: 0 | BY10: 0 | BZ10: 0 | CA10: 0 | CB10: 0 | CC10: 0 | CD10: 0 | CE10: 0 | CF10: 0 | CG10: 0 | CH10: =SUM(CH11:CH22) -> 0 | CI10: 0 | CJ10: 0 | CK10: 0 | CL10: 0 | CM10: 0 | CN10: 0 | CO10: 0 | CP10: 0 | CQ10: 0 | CR10: 0 | CS10: 0 | CT10: 0 | CU10: 0 | CV10: 0 | CW10: 0 | CX10: 0 | CY10: 0 | CZ10: 0 | DA10: 0 | DB10: 0 | DC10: 0 | DD10: 0 | DE10: 0 | DF10: 0 | DG10: 0 | DH10: 0 | DI10: 0 | DJ10: 0 | DK10: 0 | DL10: 0 | DM10: 0 | DN10: 0 | DO10: 0 | DP10: 0 | DQ10: 0 | DR10: 0 | DS10: 0 | DT10: 0 | DU10: 0 | DV10: 0 | DW10: 0 | DX10: 0 | DY10: 0 | DZ10: 0 | EA10: 0 | EB10: 0 | EC10: =SUM(EC11:EC19) -> 756 | ED10: 0
A11: ОУП.01 | B11: Русский язык | C11: гр | D11: 4 | J11: 123 | L11: =N11+P11 -> 108 | N11: =V11+AC11+AJ11+AQ11+AX11+BE11+BL11+BS11 -> 36 | P11: =W11+AD11+AK11+AR11+AY11+BF11+BM11+BT11 -> 72 | Q11: 72 | R11: 0 | U11: 24 | V11: 8 | W11: 16 | X11: 16 | AB11: 30 | AC11: 10 | AD11: 20 | AE11: 20 | AI11: 24 | AJ11: 8 | AK11: 16 | AL11: 16 | AP11: 30 | AQ11: 10 | AR11: 20 | AS11: 20 | EC11: 128
A12: ОУП.02 | B12: Литература | C12: гр | D12: 4 | J12: 123 | L12: =N12+P12 -> 132 | N12: =V12+AC12+AJ12+AQ12+AX12+BE12+BL12+BS12 -> 44 | P12: 88 | Q12: 88 | R12: 0 | U12: 48 | V12: 16 | W12: 32 | X12: 32 | AB12: 30 | AC12: 10 | AD12: 20 | AE12: 20 | AI12: 48 | AJ12: 8 | AK12: 16 | AL12: 16 | AP12: 60 | AQ12: 10 | AR12: 20 | AS12: 20 | EC12: 40
A13: ОУП.03 | B13: Родная литература | C13: гр | J13: 34 | L13: 54 | N13: 18 | P13: 36 | Q13: 36 | AJ13: 8 | AK13: 16 | AL13: 16 | AQ13: 10 | AR13: 20 | AS13: 20 | EC13: 68
A14: ОУП.04 | B14: Иностранный язык | C14: мг | F14: 34 | J14: 12 | L14: =N14+P14 -> 192 | N14: =V14+AC14+AJ14+AQ14+AX14+BE14+BL14+BS14 -> 64 | P14: =W14+AD14+AK14+AR14+AY14+BF14+BM14+BT14 -> 128 | Q14: =X14+AE14+AL14+AS14+AZ14+BG14+BN14+BU14 -> 0 | R14: =Y14+AF14+AM14+AT14+BA14+BH14+BO14+BV14 -> 128 | U14: 24 | V14: 8 | W14: 16 | Y14: 16 | AB14: 60 | AC14: 20 | AD14: 40 | AF14: 40 | AI14: 48 | AJ14: 16 | AK14: 32 | AM14: 32 | AP14: 60 | AQ14: 20 | AR14: 40 | AT14: 40 | EC14: 72
A15: ОУП.05 | B15: Обществознание | C15: гр | F15: 4 | L15: 60 | N15: 20 | P15: 40 | Q15: 40 | R15: 0 | AP15: 60 | AQ15: 20 | AR15: 40 | AS15: 40 | EC15: 36
A16: ОУП.06 | B16: Математика | C16: мг | D16: 3 | J16: 12 | L16: 102 | N16: 34 | P16: =W16+AD16+AK16+AR16+AY16+BF16+BM16+BT16 -> 68 | Q16: 68 | R16: 0 | U16: 24 | V16: 8 | W16: 16 | X16: 16 | AB16: 30 | AC16: 10 | AD16: 20 | AE16: 20 | AI16: 48 | AJ16: 16 | AK16: 32 | AL16: 32 | EC16: 144
A17: ОУП.07 | B17: Естествознание | C17: гр | F17: 2 | J17: 1 | L17: =N17+P17 -> 108 | N17: =V17+AC17+AJ17+AQ17+AX17+BE17+BL17+BS17 -> 36 | P17: 72 | Q17: 72 | R17: 0 | U17: 48 | V17: 16 | W17: 32 | X17: 32 | AB17: 60 | AC17: 20 | AD17: 40 | AE17: 40 | EC17: 72
A18: ОУП.08 | B18: Астрономия | C18: гр | F18: 4 | J18: 3 | L18: =N18+P18 -> 54 | N18: =V18+AC18+AJ18+AQ18+AX18+BE18+BL18+BS18 -> 18 | P18: 36 | Q18: 36 | R18: 0 | AI18: 24 | AJ18: 8 | AK18: 16 | AL18: 16 | AP18: 30 | AQ18: 10 | AR18: 20 | AS18: 20 | EC18: 72
A19: ОУП.09 | B19: Основы безопасности жизнедеятельности | C19: гр | F19: 2 | J19: 1 | L19: 108 | N19: 36 | P19: 72 | Q19: 72 | R19: 0 | U19: 48 | V19: 16 | W19: 32 | X19: 32 | AB19: 60 | AC19: 20 | AD19: 40 | AE19: 40 | EC19: 124
A20: ОУП.10 | B20: Физическая культура | C20: гр | E20: 1234 | L20: 216 | N20: 72 | P20: 144 | Q20: 144 | R20: 0 | U20: 48 | V20: 16 | W20: 32 | X20: 32 | AB20: 60 | AC20: 20 | AD20: 40 | AE20: 40 | AI20: 48 | AJ20: 16 | AK20: 32 | AL20: 32 | AP20: 60 | AQ20: 20 | AR20: 40 | AS20: 40 | EC20: 144
A21: ПУП.00 | B21: Профильные учебные предметы | D21: 8 | F21: 1 | G21: =LEN(#REF!)+LEN(#REF!)+LEN(G26)+LEN(#REF!)+LEN(#REF!)+LEN(#REF!)+LEN(#REF!) ->  | H21: =LEN(#REF!)+LEN(#REF!)+LEN(H26)+LEN(#REF!)+LEN(#REF!)+LEN(#REF!)+LEN(#REF!) ->  | I21: =LEN(#REF!)+LEN(#REF!)+LEN(I26)+LEN(#REF!)+LEN(#REF!)+LEN(#REF!)+LEN(#REF!) ->  | J21: 7 | L21: 972 | M21: =SUM(M21:M26) -> 0 | N21: 324 | O21: =SUM(O21:O26) -> 0 | P21: 648 | Q21: 648 | R21: =SUM(R21:R26) -> 0 | U21: 240 | V21: 80 | W21: 160 | X21: 160 | Y21: =SUM(Y21:Y26) -> 0 | Z21: =SUM(Z21:Z26) -> 0 | AA21: =SUM(AA21:AA26) -> 0 | AB21: =SUM(AB21:AB26) -> 360 | AC21: 100 | AD21: 200 | AE21: 200 | AF21: =SUM(AF21:AF26) -> 0 | AG21: =SUM(AG21:AG26) -> 0 | AH21: =SUM(AH21:AH26) -> 0 | AI21: =SUM(AI21:AI26) -> 192 | AJ21: 40 | AK21: 80 | AL21: 80 | AM21: =SUM(AM21:AM26) -> 0 | AN21: =SUM(AN21:AN26) -> 0 | AO21: =SUM(AO21:AO26) -> 0 | AP21: =SUM(AP21:AP26) -> 240 | AQ21: 50 | AR21: 100 | AS21: 100 | AT21: =SUM(AT21:AT26) -> 0 | AU21: 0 | AV21: 0 | AW21: 72 | AX21: 24 | AY21: 48 | AZ21: 48 | BA21: 0 | BB21: 0 | BC21: 0 | BD21: 90 | BE21: 30 | BF21: 60 | BG21: 60 | BH21: 0 | BI21: 0 | BJ21: 0 | BK21: 0 | BL21: 0 | BM21: 0 | BN21: 0 | BO21: 0 | BP21: 0 | BQ21: 0 | BR21: 0 | BS21: 0 | BT21: 0 | BU21: 0 | BV21: 0 | BW21: 0 | BX21: 0 | BY21: 0 | BZ21: =SUM(BZ21:BZ26) -> 0 | CA21: 0 | CB21: 0 | CC21: 0 | CD21: 0 | CE21: 0 | CF21: 0 | CG21: 0 | CH21: 0 | CI21: 0 | CJ21: 0 | CK21: 0 | CL21: 0 | CM21: 0 | CN21: 0 | CO21: 0 | CP21: 0 | CQ21: 0 | CR21: 0 | CS21: 0 | CT21: 0 | CU21: 0 | CV21: 0 | CW21: 0 | CX21: 0 | CY21: 0 | CZ21: 0 | DA21: 0 | DB21: 0 | DC21: 0 | DD21: 0 | DE21: 0 | DF21: =SUM(DF21:DF26) -> 0 | DG21: 0 | DH21: 0 | DI21: 0 | DJ21: 0 | DK21: 0 | DL21: 0 | DM21: 0 | DN21: 0 | DO21: 0 | DP21: 0 | DQ21: 0 | DR21: 0 | DS21: 0 | DT21: 0 | DU21: 0 | DV21: 0 | DW21: 0 | DX21: 0 | DY21: 0 | DZ21: 0 | EA21: 0 | EB21: 0 | EC21: 648 | ED21: =SUM(ED21:ED26) -> 0
A22: ПУП.01 | B22: История мировой культуры | C22: гр | F22: 4 | J22: 123 | L22: =N22+P22 -> 216 | N22: =V22+AC22+AJ22+AQ22+AX22+BE22+BL22+BS22 -> 72 | P22: =W22+AD22+AK22+AR22+AY22+BF22+BM22+BT22 -> 144 | Q22: 144 | R22: 0 | U22: 48 | V22: 16 | W22: 32 | X22: 32 | AB22: 60 | AC22: 20 | AD22: 40 | AE22: 40 | AI22: 48 | AJ22: 16 | AK22: 32 | AL22: 32 | AP22: 60 | AQ22: 20 | AR22: 40 | AS22: 40 | EC22: 144
A23: ПУП.02 | B23: История | C23: гр | D23: 2 | J23: 1 | L23: =N23+P23 -> 216 | N23: =V23+AC23+AJ23+AQ23+AX23+BE23+BL23+BS23 -> 72 | P23: =W23+AD23+AK23+AR23+AY23+BF23+BM23+BT23 -> 144 | Q23: =X23+AE23+AL23+AS23+AZ23+BG23+BN23+BU23 -> 144 | R23: =Y23+AF23+AM23+AT23+BA23+BH23+BO23+BV23 -> 0 | U23: 96 | V23: 32 | W23: 64 | X23: 64 | AB23: 120 | AC23: 40 | AD23: 80 | AE23: 80 | EC23: 144
A24: ПУП.03 | B24: Народная музыкальная культура | C24: гр | D24: 2 | J24: 1 | L24: =N24+P24 -> 54 | N24: =V24+AC24+AJ24+AQ24+AX24+BE24+BL24+BS24 -> 18 | P24: =W24+AD24+AK24+AR24+AY24+BF24+BM24+BT24 -> 36 | Q24: 36 | R24: 0 | U24: 24 | V24: 8 | W24: 16 | X24: 16 | AB24: 30 | AC24: 10 | AD24: 20 | AE24: 20 | EC24: 36
A25: ПУП.04 | B25: Музыкальная литература (зарубежная и отечественная) | C25: мг | D25: 1246 | J25: 35 | L25: 486 | N25: 162 | P25: 324 | Q25: 324 | R25: 0 | U25: 72 | V25: 24 | W25: 48 | X25: 48 | AB25: 90 | AC25: 30 | AD25: 60 | AE25: 60 | AI25: 72 | AJ25: 24 | AK25: 48 | AL25: 48 | AP25: 90 | AQ25: 30 | AR25: 60 | AS25: 60 | AW25: 72 | AX25: 24 | AY25: 48 | AZ25: 48 | BD25: 90 | BE25: 30 | BF25: 60 | BG25: 60 | EC25: 324
B26: час/нед | U26: 22.5 | W26: 15 | AB26: 22.5 | AD26: 15 | AI26: 31.4 | AK26: 21 | AP26: 31.5 | AR26: 21 | AW26: 49.5 | AY26: 33 | BD26: 49.5 | BF26: 33 | BK26: 54 | BM26: 36 | BR26: 54 | BT26: 36 | BY26: NaN | CA26: NaN | CF26: NaN | CH26: NaN | CM26: NaN | CO26: NaN | CT26: NaN | CV26: NaN | DA26: NaN | DC26: NaN | DH26: NaN | DJ26: NaN | DO26: NaN | DQ26: NaN | DV26: NaN | DX26: NaN
A27: ОГСЭ.00 | B27: Общий гуманитарный и социально-экономический цикл | D27: =LEN(D28)+LEN(D29)+LEN(D30)+LEN(D31)+LEN(D32) -> 1 | E27: =LEN(E28)+LEN(E29)+LEN(E30)+LEN(E31)+LEN(E32) -> 3 | F27: 3 | G27: 0 | H27: 0 | I27: 0 | J27: 3 | L27: =SUM(L28:L32) -> 531 | M27: =SUM(M28:M32) -> 0 | N27: 177 | O27: 0 | P27: 354 | Q27: =SUM(Q28:Q32) -> 192 | R27: 162 | V27: =SUM(V28:V32) -> 0 | W27: =SUM(W28:W32) -> 0 | X27: =SUM(X28:X32) -> 0 | Y27: =SUM(Y28:Y32) -> 0 | AA27: =SUM(AA28:AA32) -> 0 | AC27: =SUM(AC28:AC32) -> 0 | AD27: =SUM(AD28:AD32) -> 0 | AE27: =SUM(AE28:AE32) -> 0 | AF27: =SUM(AF28:AF32) -> 0 | AH27: =SUM(AH28:AH32) -> 0 | AI27: 59 | AJ27: =SUM(AJ28:AJ32) -> 24 | AK27: =SUM(AK28:AK32) -> 48 | AL27: =SUM(AL28:AL32) -> 48 | AM27: =SUM(AM28:AM32) -> 0 | AO27: =SUM(AO28:AO32) -> 0 | AQ27: =SUM(AQ28:AQ32) -> 0 | AR27: =SUM(AR28:AR32) -> 0 | AS27: =SUM(AS28:AS32) -> 0 | AT27: =SUM(AT28:AT32) -> 0 | AV27: =SUM(AV28:AV32) -> 0 | AW27: 167 | AX27: =SUM(AX28:AX32) -> 56 | AY27: =SUM(AY28:AY32) -> 112 | AZ27: =SUM(AZ28:AZ32) -> 48 | BA27: =SUM(BA28:BA32) -> 64 | BC27: =SUM(BC28:BC32) -> 0 | BE27: =SUM(BE28:BE32) -> 30 | BF27: =SUM(BF28:BF32) -> 60 | BG27: =SUM(BG28:BG32) -> 0 | BH27: =SUM(BH28:BH32) -> 60 | BJ27: =SUM(BJ28:BJ32) -> 0 | BL27: =SUM(BL28:BL32) -> 48 | BM27: =SUM(BM28:BM32) -> 96 | BN27: =SUM(BN28:BN32) -> 96 | BO27: =SUM(BO28:BO32) -> 0 | BQ27: =SUM(BQ28:BQ32) -> 0 | BR27: 52 | BS27: =SUM(BS28:BS32) -> 19 | BT27: =SUM(BT28:BT32) -> 38 | BU27: =SUM(BU28:BU32) -> 0 | BV27: =SUM(BV28:BV32) -> 38 | BX27: =SUM(BX28:BX32) -> 0 | EC27: =SUM(EC28:EC32) -> 354 | ED27: =SUM(ED28:ED32) -> 0
A28: ОГСЭ.01 | B28: Основы философии | C28: гр | F28: 5 | L28: =N28+P28 -> 72 | N28: 24 | P28: =W28+AD28+AK28+AR28+AY28+BF28+BM28+BT28 -> 48 | Q28: 48 | R28: 0 | AW28: 59 | AX28: 24 | AY28: 48 | AZ28: 48 | EC28: 48
A29: ОГСЭ.02 | B29: История | C29: гр | D29: 3 | L29: =N29+P29 -> 72 | N29: 24 | P29: 48 | Q29: 48 | R29: 0 | AI29: 59 | AJ29: 24 | AK29: 48 | AL29: 48 | EC29: 48
A30: ОГСЭ.03 | B30: Психология общения | C30: гр | F30: 7 | L30: =N30+P30 -> 72 | N30: 24 | P30: 48 | Q30: 48 | R30: 0 | BK30: 59 | BL30: 24 | BM30: 48 | BN30: 48 | EC30: 48
A31: ОГСЭ.04 | B31: Иностранный язык | C31: мг | F31: 8 | J31: 567 | L31: 159 | N31: 53 | P31: 106 | Q31: 16 | R31: 90 | AW31: 44 | AX31: 16 | AY31: 32 | BA31: 32 | BD31: 28 | BE31: 10 | BF31: 20 | BH31: 20 | BK31: 22 | BL31: 8 | BM31: 16 | BN31: 16 | BR31: 52 | BS31: 19 | BT31: 38 | BV31: 38 | EC31: 106
A32: ОГСЭ.05 | B32: Физическая культура | C32: гр | E32: 567 | L32: =N32+P32 -> 156 | N32: 52 | P32: 104 | Q32: 32 | R32: 72 | AW32: 64 | AX32: 16 | AY32: 32 | BA32: 32 | BD32: 80 | BE32: 20 | BF32: 40 | BH32: 40 | BK32: 64 | BL32: 16 | BM32: 32 | BN32: 32 | EC32: 104
A33: П | B33: Профессиональный цикл
A34: ОП.00 | B34: Общепрофессиональные дисциплины | D34: =LEN(D35)+LEN(D36)+LEN(D37)+LEN(D38)+LEN(D39)+LEN(D40)+LEN(D41)+LEN(D42) -> 6 | E34: =LEN(E35)+LEN(E36)+LEN(E37)+LEN(E38)+LEN(E39)+LEN(E40)+LEN(E41)+LEN(E42) -> 0 | F34: 5 | G34: 0 | H34: 0 | I34: 0 | J34: 16 | L34: =SUM(L35:L42) -> 1420 | M34: =SUM(M35:M42) -> 0 | N34: 473 | O34: 0 | P34: 947 | Q34: 173 | R34: 774 | U34: 108 | V34: =SUM(V35:V42) -> 40 | W34: =SUM(W35:W42) -> 80 | X34: =SUM(X35:X42) -> 0 | Y34: =SUM(Y35:Y42) -> 80 | AA34: =SUM(AA35:AA42) -> 0 | AB34: 135 | AC34: =SUM(AC35:AC42) -> 50 | AD34: =SUM(AD35:AD42) -> 100 | AE34: =SUM(AE35:AE42) -> 0 | AF34: =SUM(AF35:AF42) -> 100 | AH34: =SUM(AH35:AH42) -> 0 | AI34: 120 | AJ34: =SUM(AJ35:AJ42) -> 32 | AK34: =SUM(AK35:AK42) -> 64 | AL34: =SUM(AL35:AL42) -> 0 | AM34: =SUM(AM35:AM42) -> 64 | AO34: =SUM(AO35:AO42) -> 0 | AP34: 150 | AQ34: =SUM(AQ35:AQ42) -> 40 | AR34: =SUM(AR35:AR42) -> 80 | AS34: =SUM(AS35:AS42) -> 0 | AT34: =SUM(AT35:AT42) -> 80 | AV34: =SUM(AV35:AV42) -> 0 | AW34: 144 | AX34: =SUM(AX35:AX42) -> 40 | AY34: =SUM(AY35:AY42) -> 80 | AZ34: =SUM(AZ35:AZ42) -> 16 | BA34: =SUM(BA35:BA42) -> 64 | BC34: =SUM(BC35:BC42) -> 0 | BD34: 180 | BE34: =SUM(BE35:BE42) -> 60 | BF34: =SUM(BF35:BF42) -> 120 | BG34: =SUM(BG35:BG42) -> 20 | BH34: =SUM(BH35:BH42) -> 100 | BJ34: =SUM(BJ35:BJ42) -> 0 | BK34: 264 | BL34: =SUM(BL35:BL42) -> 88 | BM34: =SUM(BM35:BM42) -> 176 | BN34: =SUM(BN35:BN42) -> 80 | BO34: =SUM(BO35:BO42) -> 96 | BQ34: =SUM(BQ35:BQ42) -> 0 | BR34: 256 | BS34: =SUM(BS35:BS42) -> 123 | BT34: =SUM(BT35:BT42) -> 247 | BU34: =SUM(BU35:BU42) -> 57 | BV34: =SUM(BV35:BV42) -> 190 | BX34: =SUM(BX35:BX42) -> 0 | EC34: =SUM(EC35:EC42) -> 815 | ED34: =SUM(ED35:ED42) -> 132
A35: ОП.01 | B35: Музыкальная литература (зарубежная и отечественная) | C35: мг | D35: 8 | J35: 7 | L35: =N35+P35 -> 157 | N35: =V35+AC35+AJ35+AQ35+AX35+BE35+BL35+BS35 -> 52 | P35: =W35+AD35+AK35+AR35+AY35+BF35+BM35+BT35 -> 105 | Q35: =X35+AE35+AL35+AS35+AZ35+BG35+BN35+BU35 -> 105 | R35: =Y35+AF35+AM35+AT35+BA35+BH35+BO35+BV35 -> 0 | BK35: 72 | BL35: 24 | BM35: 48 | BN35: 48 | BR35: 85 | BS35: 28 | BT35: 57 | BU35: 57 | EC35: 105
A36: ОП.02 | B36: Сольфеджио | C36: мг | D36: 47 | F36: 2 | J36: 13568 | L36: =N36+P36 -> 429 | N36: =V36+AC36+AJ36+AQ36+AX36+BE36+BL36+BS36 -> 143 | P36: =W36+AD36+AK36+AR36+AY36+BF36+BM36+BT36 -> 286 | Q36: =X36+AE36+AL36+AS36+AZ36+BG36+BN36+BU36 -> 0 | R36: =Y36+AF36+AM36+AT36+BA36+BH36+BO36+BV36 -> 286 | U36: 48 | V36: 16 | W36: 32 | Y36: 32 | AB36: 60 | AC36: 20 | AD36: 40 | AF36: 40 | AI36: 48 | AJ36: 16 | AK36: 32 | AM36: 32 | AP36: 60 | AQ36: 20 | AR36: 40 | AT36: 40 | AW36: 48 | AX36: 16 | AY36: 32 | BA36: 32 | BD36: 60 | BE36: 20 | BF36: 40 | BH36: 40 | BK36: 48 | BL36: 16 | BM36: 32 | BO36: 32 | BS36: 19 | BT36: 38 | BV36: 38 | EC36: 248 | ED36: 38
B37: Сольфеджио индивидуальное | C37: инд | J37: 126 | L37: 84 | N37: 28 | P37: 56 | Q37: 0 | R37: 56 | U37: 12 | V37: 8 | W37: 16 | Y37: 16 | AB37: 15 | AC37: 10 | AD37: 20 | AF37: 20 | AI37: 12 | AP37: 15 | AW37: 12 | BD37: 15 | BE37: 10 | BF37: 20 | BH37: 20 | ED37: 56
A38: ОП.03 | B38: Элементарная теория музыки | C38: мг | D38: 2 | F38: 1 | L38: 108 | N38: 36 | P38: 72 | Q38: 0 | R38: 72 | U38: 48 | V38: 16 | W38: 32 | Y38: 32 | AB38: 60 | AC38: 20 | AD38: 40 | AF38: 40 | EC38: 72
A39: ОП.04 | B39: Гармония | C39: мг | D39: 57 | J39: 3468 | L39: 321 | N39: 107 | P39: 214 | Q39: 0 | R39: 214 | AI39: 48 | AJ39: 16 | AK39: 32 | AM39: 32 | AP39: 60 | AQ39: 20 | AR39: 40 | AT39: 40 | AW39: 48 | AX39: 16 | AY39: 32 | BA39: 32 | BD39: 60 | BE39: 20 | BF39: 40 | BH39: 40 | BK39: 48 | BL39: 16 | BM39: 32 | BO39: 32 | BS39: 19 | BT39: 38 | BV39: 38 | EC39: 176 | ED39: 38
A40: ОП.05 | B40: Анализ музыкальных произведений | C40: мг | F40: 8 | J40: 7 | L40: 105 | N40: 35 | P40: 70 | Q40: 0 | R40: 70 | BK40: 48 | BL40: 16 | BM40: 32 | BO40: 32 | BR40: 57 | BS40: 19 | BT40: 38 | BV40: 38 | EC40: 70
A41: ОП.06 | B41: Музыкальная информатика | C41: мг | F41: 8 | L41: 114 | N41: 38 | P41: 76 | Q41: 0 | R41: 76 | BR41: 114 | BS41: 38 | BT41: 76 | BV41: 76 | EC41: 76
A42: ОП.07 | B42: Безопасность жизнедеятельности | C42: гр | F42: 7 | J42: 56 | L42: 102 | N42: 34 | P42: 68 | Q42: 68 | R42: 0 | AW42: 24 | AX42: 8 | AY42: 16 | AZ42: 16 | BD42: 30 | BE42: 10 | BF42: 20 | BG42: 20 | BK42: 48 | BL42: 16 | BM42: 32 | BN42: 32 | EC42: 68
A43: ПМ | B43: Профессиональные модули
A44: ПМ.01 | B44: Исполнительская деятельность | D44: =LEN(D45)+LEN(D46)+LEN(D47)+LEN(D48)+LEN(D49)+LEN(D50)+LEN(D51)+LEN(D52) -> 9 | E44: 0 | F44: 4 | G44: 0 | H44: 0 | I44: 0 | J44: 23 | L44: =SUM(L45:L55) -> 1925 | M44: =SUM(M45:M52) -> 0 | N44: =SUM(N45:N55) -> 642 | O44: 0 | P44: =SUM(P45:P55) -> 1283 | Q44: 280 | R44: 823 | S44: 0 | U44: 127 | V44: =SUM(V45:V52) -> 48 | W44: =SUM(W45:W52) -> 96 | X44: =SUM(X45:X52) -> 32 | Y44: =SUM(Y45:Y52) -> 64 | AA44: =SUM(AA45:AA52) -> 0 | AC44: =SUM(AC45:AC52) -> 60 | AD44: =SUM(AD45:AD52) -> 120 | AE44: =SUM(AE45:AE52) -> 40 | AF44: =SUM(AF45:AF52) -> 80 | AH44: =SUM(AH45:AH52) -> 0 | AJ44: =SUM(AJ45:AJ52) -> 56 | AK44: =SUM(AK45:AK52) -> 112 | AL44: =SUM(AL45:AL52) -> 16 | AM44: =SUM(AM45:AM52) -> 96 | AO44: =SUM(AO45:AO52) -> 0 | AQ44: =SUM(AQ45:AQ52) -> 100 | AR44: =SUM(AR45:AR52) -> 200 | AS44: =SUM(AS45:AS52) -> 60 | AT44: =SUM(AT45:AT52) -> 140 | AV44: =SUM(AV45:AV52) -> 0 | AX44: =SUM(AX45:AX52) -> 48 | AY44: =SUM(AY45:AY52) -> 96 | AZ44: =SUM(AZ45:AZ52) -> 0 | BA44: =SUM(BA45:BA52) -> 96 | BC44: =SUM(BC45:BC52) -> 0 | BE44: =SUM(BE45:BE52) -> 90 | BF44: =SUM(BF45:BF52) -> 180 | BG44: =SUM(BG45:BG52) -> 40 | BH44: =SUM(BH45:BH52) -> 140 | BJ44: =SUM(BJ45:BJ52) -> 0 | BL44: =SUM(BL45:BL52) -> 64 | BM44: =SUM(BM45:BM52) -> 128 | BN44: =SUM(BN45:BN52) -> 24 | BO44: =SUM(BO45:BO52) -> 104 | BQ44: =SUM(BQ45:BQ52) -> 0 | BS44: =SUM(BS45:BS52) -> 86 | BT44: =SUM(BT45:BT52) -> 171 | BU44: =SUM(BU45:BU52) -> 68 | BV44: =SUM(BV45:BV52) -> 103 | BX44: =SUM(BX45:BX52) -> 0 | EC44: =SUM(EC45:EC52) -> 875 | ED44: =SUM(ED45:ED52) -> 228
A45: МДК.01.01. | B45: Специальный инструмент | C45: инд | D45: 23456 | J45: 178 | L45: =N45+P45 -> 751 | N45: =V45+AC45+AJ45+AQ45+AX45+BE45+BL45+BS45 -> 250 | P45: =W45+AD45+AK45+AR45+AY45+BF45+BM45+BT45 -> 501 | Q45: =X45+AE45+AL45+AS45+AZ45+BG45+BN45+BU45 -> 0 | R45: =Y45+AF45+AM45+AT45+BA45+BH45+BO45+BV45 -> 501 | U45: 75 | V45: 32 | W45: 64 | Y45: 64 | AB45: 93 | AC45: 40 | AD45: 80 | AF45: 80 | AI45: 75 | AJ45: 32 | AK45: 64 | AM45: 64 | AP45: 93 | AQ45: 40 | AR45: 80 | AT45: 80 | AW45: 75 | AX45: 24 | AY45: 48 | BA45: 48 | BD45: 93 | BE45: 30 | BF45: 60 | BH45: 60 | BK45: 75 | BL45: 24 | BM45: 48 | BO45: 48 | BR45: 91 | BS45: 28 | BT45: 57 | BV45: 57 | EC45: 429 | ED45: 72
A46: МДК.01.02 | B46: Ансамблевое исполнительство | C46: инд | D46: 6 | J46: 34578 | L46: =N46+P46 -> 161 | N46: =V46+AC46+AJ46+AQ46+AX46+BE46+BL46+BS46 -> 54 | P46: =W46+AD46+AK46+AR46+AY46+BF46+BM46+BT46 -> 107 | Q46: =X46+AE46+AL46+AS46+AZ46+BG46+BN46+BU46 -> 0 | R46: =Y46+AF46+AM46+AT46+BA46+BH46+BO46+BV46 -> 107 | AI46: 24 | AJ46: 8 | AK46: 16 | AM46: 16 | AP46: 30 | AQ46: 10 | AR46: 20 | AT46: 20 | AW46: 24 | AX46: 8 | AY46: 16 | BA46: 16 | BD46: 30 | BE46: 10 | BF46: 20 | BH46: 20 | BK46: 24 | BL46: 8 | BM46: 16 | BO46: 16 | BR46: 29 | BS46: 10 | BT46: 19 | BV46: 19 | EC46: 107
A47: МДК.01.03 | B47: Концертмейстерский класс | C47: инд | D47: 5 | J47: 34678 | L47: 220 | N47: 73 | P47: 147 | Q47: 0 | R47: 147 | AI47: 24 | AJ47: 8 | AK47: 16 | AM47: 16 | AP47: 60 | AQ47: 20 | AR47: 40 | AT47: 40 | AW47: 24 | AX47: 8 | AY47: 16 | BA47: 16 | BD47: 90 | BE47: 20 | BF47: 40 | BH47: 40 | BK47: 24 | BL47: 8 | BM47: 16 | BO47: 16 | BR47: 28 | BS47: 9 | BT47: 19 | BV47: 19 | EC47: 107 | ED47: 40
A48: МДК.01.04. | B48: История исполнительского искусства, устройство клавишных инструментов: история исполнительского искусства | C48: мг | D48: 8 | F48: 6 | J48: 1247 | L48: 279 | N48: 93 | P48: 186 | Q48: 170 | R48: 16 | V48: 8 | W48: 16 | X48: 16 | AC48: 10 | AD48: 20 | AE48: 20 | AQ48: 20 | AR48: 40 | AS48: 40 | BE48: 20 | BF48: 40 | BG48: 40 | BK48: 48 | BL48: 16 | BM48: 32 | BN48: 24 | BO48: 8 | BR48: 57 | BS48: 19 | BT48: 38 | BU48: 30 | BV48: 8 | EC48: 70 | ED48: 116
B49: История исполнительского искусства, устройство клавишных инструментов: устройство клавишных инструментов | C49: мг | J49: 8 | L49: 29 | N49: 10 | P49: 19 | Q49: 19 | R49: 0 | BR49: 28 | BS49: 10 | BT49: 19 | BU49: 19 | EC49: 19
A50: МДК.01.05. | B50: Основы композиции, инструментоведение, дополнительный инструмент: основы композиции | C50: мг | F50: 4 | J50: 123 | L50: 108 | N50: 36 | P50: 72 | Q50: 72 | R50: 0 | U50: 16 | V50: 8 | W50: 16 | X50: 16 | AB50: 20 | AC50: 10 | AD50: 20 | AE50: 20 | AI50: 16 | AJ50: 8 | AK50: 16 | AL50: 16 | AP50: 30 | AQ50: 10 | AR50: 20 | AS50: 20 | EC50: 72
B51: Основы композиции, инструментоведение, дополнительный инструмент: инструментоведение | C51: мг | F51: 8 | L51: 29 | N51: 10 | P51: 19 | Q51: 19 | R51: 0 | BR51: 28 | BS51: 10 | BT51: 19 | BU51: 19 | EC51: 19
B52: Основы композиции, инструментоведение, дополнительный инструмент: дополнительный инструмент | C52: инд | D52: 7 | J52: 56 | L52: 78 | N52: 26 | P52: 52 | Q52: 0 | R52: 52 | AW52: 24 | AX52: 8 | AY52: 16 | BA52: 16 | BD52: 30 | BE52: 10 | BF52: 20 | BH52: 20 | BK52: 24 | BL52: 8 | BM52: 16 | BO52: 16 | EC52: 52
B53: Изучение родственных инструментов | C53: инд | F53: 4 | J53: 123 | L53: =N53+P53 -> 108 | N53: =V53+AC53+AJ53+AQ53+AX53+BE53+BL53+BS53 -> 36 | P53: =W53+AD53+AK53+AR53+AY53+BF53+BM53+BT53 -> 72 | Q53: 0 | R53: 72 | U53: 29 | V53: 8 | W53: 16 | Y53: 16 | AB53: 38 | AC53: 10 | AD53: 20 | AF53: 20 | AI53: 40 | AJ53: 8 | AK53: 16 | AM53: 16 | AP53: 30 | AQ53: 10 | AR53: 20 | AT53: 20 | ED53: 72
A54: МДК.01.06. | B54: Дирижирование | C54: инд | D54: 7 | J54: 456 | L54: =N54+P54 -> 108 | N54: =V54+AC54+AJ54+AQ54+AX54+BE54+BL54+BS54 -> 36 | P54: 72 | Q54: 0 | R54: 72 | AP54: 27 | AQ54: 10 | AR54: 20 | AT54: 20 | AW54: 22 | AX54: 8 | AY54: 16 | BA54: 16 | BD54: 20 | BE54: 10 | BF54: 20 | BH54: 20 | BK54: 20 | BL54: 8 | BM54: 16 | BO54: 16 | ED54: 72
B55: Чтение оркестровых партитур | C55: инд | D55: 6 | J55: 5 | L55: =N55+P55 -> 54 | N55: =V55+AC55+AJ55+AQ55+AX55+BE55+BL55+BS55 -> 18 | P55: 36 | Q55: 0 | R55: 36 | AW55: 24 | AX55: 8 | AY55: 16 | BA55: 16 | BD55: 20 | BE55: 10 | BF55: 20 | BH55: 20 | ED55: 36
A56: ПМ.02 | B56: Педагогическая деятельность | D56: =LEN(D57)+LEN(D58)+LEN(D59)+LEN(D60)+LEN(D61)+LEN(D62)+LEN(D63)+LEN(D64)+LEN(D65) -> 2 | E56: =LEN(E57)+LEN(E58)+LEN(E59)+LEN(E60)+LEN(E61)+LEN(E62)+LEN(E63)+LEN(E64)+LEN(E65) -> 1 | F56: 1 | G56: 0 | H56: 0 | I56: 0 | J56: 11 | L56: =SUM(L57:L65) -> 714 | M56: =SUM(M57:M65) -> 0 | N56: 238 | O56: 0 | P56: 476 | Q56: 392 | R56: 84 | S56: =SUM(S57:S65) -> 0 | U56: 24 | V56: =SUM(V57:V65) -> 0 | W56: =SUM(W57:W65) -> 0 | X56: =SUM(X57:X65) -> 0 | Y56: =SUM(Y57:Y65) -> 0 | AA56: =SUM(AA57:AA65) -> 0 | AC56: =SUM(AC57:AC65) -> 0 | AD56: =SUM(AD57:AD65) -> 0 | AE56: =SUM(AE57:AE65) -> 0 | AF56: =SUM(AF57:AF65) -> 0 | AH56: =SUM(AH57:AH65) -> 0 | AJ56: =SUM(AJ57:AJ65) -> 24 | AK56: =SUM(AK57:AK65) -> 48 | AL56: =SUM(AL57:AL65) -> 48 | AM56: =SUM(AM57:AM65) -> 0 | AO56: =SUM(AO57:AO65) -> 0 | AQ56: =SUM(AQ57:AQ65) -> 20 | AR56: =SUM(AR57:AR65) -> 40 | AS56: =SUM(AS57:AS65) -> 40 | AT56: =SUM(AT57:AT65) -> 0 | AV56: =SUM(AV57:AV65) -> 0 | AX56: =SUM(AX57:AX65) -> 64 | AY56: =SUM(AY57:AY65) -> 128 | AZ56: =SUM(AZ57:AZ65) -> 106 | BA56: =SUM(BA57:BA65) -> 22 | BC56: =SUM(BC57:BC65) -> 0 | BE56: =SUM(BE57:BE65) -> 60 | BF56: =SUM(BF57:BF65) -> 120 | BG56: =SUM(BG57:BG65) -> 96 | BH56: =SUM(BH57:BH65) -> 24 | BJ56: =SUM(BJ57:BJ65) -> 0 | BL56: =SUM(BL57:BL65) -> 32 | BM56: =SUM(BM57:BM65) -> 64 | BN56: =SUM(BN57:BN65) -> 64 | BO56: =SUM(BO57:BO65) -> 0 | BQ56: =SUM(BQ57:BQ65) -> 0 | BS56: =SUM(BS57:BS65) -> 38 | BT56: =SUM(BT57:BT65) -> 76 | BU56: =SUM(BU57:BU65) -> 38 | BV56: =SUM(BV57:BV65) -> 38 | BX56: =SUM(BX57:BX65) -> 0 | EC56: =SUM(EC57:EC65) -> 440 | ED56: =SUM(ED57:ED65) -> 36
A57: МДК.02.01. | B57: Педагогические основы преподавания творческих дисциплин: основы педагогики | C57: гр | J57: 34 | L57: =N57+P57 -> 108 | N57: =V57+AC57+AJ57+AQ57+AX57+BE57+BL57+BS57 -> 36 | P57: =W57+AD57+AK57+AR57+AY57+BF57+BM57+BT57 -> 72 | Q57: =X57+AE57+AL57+AS57+AZ57+BG57+BN57+BU57 -> 72 | R57: =Y57+AF57+AM57+AT57+BA57+BH57+BO57+BV57 -> 0 | AI57: 48 | AJ57: 16 | AK57: 32 | AL57: 32 | AP57: 60 | AQ57: 20 | AR57: 40 | AS57: 40 | EC57: 72
B58: Педагогические основы преподавания творческих дисциплин: основы системы музыкального образования | C58: гр | D58: 6 | J58: 5 | L58: =N58+P58 -> 108 | N58: =V58+AC58+AJ58+AQ58+AX58+BE58+BL58+BS58 -> 36 | P58: =W58+AD58+AK58+AR58+AY58+BF58+BM58+BT58 -> 72 | Q58: =X58+AE58+AL58+AS58+AZ58+BG58+BN58+BU58 -> 72 | R58: =Y58+AF58+AM58+AT58+BA58+BH58+BO58+BV58 -> 0 | AW58: 48 | AX58: 16 | AY58: 32 | AZ58: 32 | BD58: 60 | BE58: 20 | BF58: 40 | BG58: 40 | EC58: 72
B59: Педагогические основы преподавания творческих дисциплин: возрастная психология | C59: гр | J59: 56 | L59: 54 | N59: 18 | P59: 36 | Q59: 36 | R59: 0 | AW59: 24 | AX59: 8 | AY59: 16 | AZ59: 16 | BD59: 30 | BE59: 10 | BF59: 20 | BG59: 20 | EC59: 36
B60: Педагогические основы преподавания творческих ди сциплин: основы организации учебного процесса | C60: гр | J60: 7 | L60: 48 | N60: 16 | P60: 32 | Q60: 32 | R60: 0 | BK60: 48 | BL60: 16 | BM60: 32 | BN60: 32 | EC60: 32
B61: Педагогические основы преподавания творческих дисциплин: основы психологии музыкального восприятия | C61: гр | F61: 8 | L61: 57 | N61: 19 | P61: 38 | Q61: 38 | R61: 0 | BR61: 57 | BS61: 19 | BT61: 38 | BU61: 38 | EC61: 38
A62: МДК.02.02. | B62: Учебно-методическое обеспечение учебного процесса: методика обучения игре на инструменте | C62: мг | J62: 56 | L62: 156 | N62: 52 | P62: 104 | Q62: 94 | R62: 10 | AW62: 96 | AX62: 32 | AY62: 64 | AZ62: 58 | BA62: 6 | BD62: 60 | BE62: 20 | BF62: 40 | BG62: 36 | BH62: 4 | EC62: 104
B63: Учебно-методическое обеспечение учебного процесса: изучение методической литературы по вопросам педагогики и методики | C63: инд | D63: 7 | J63: 3 | L63: 72 | N63: 24 | P63: 48 | Q63: 48 | R63: 0 | AI63: 24 | AJ63: 8 | AK63: 16 | AL63: 16 | BK63: 48 | BL63: 16 | BM63: 32 | BN63: 32 | EC63: 48
B64: Учебно- методическое обеспечение учебного процесса: физическая культура (ритмика) | C64: гр | E64: 8 | L64: 57 | N64: 19 | P64: 38 | Q64: 0 | R64: 38 | BR64: 57 | BS64: 19 | BT64: 38 | BV64: 38 | EC64: 38
B65: Изучение репертуара ДШИ | C65: инд | J65: 56 | L65: 54 | N65: 18 | P65: 36 | Q65: 0 | R65: 36 | U65: 24 | AB65: 30 | AP65: 30 | AX65: 8 | AY65: 16 | BA65: 16 | BD65: 30 | BE65: 10 | BF65: 20 | BH65: 20 | ED65: 36
A66: УП .00 | B66: Учебная практика | D66: =LEN(D67)+LEN(D68)+LEN(D69)+LEN(D70)+LEN(D71) -> 0 | E66: 0 | F66: 4 | G66: 0 | H66: 0 | I66: 0 | J66: =LEN(J67)+LEN(J68)+LEN(J69)+LEN(J70)+LEN(J71) -> 24 | L66: =SUM(L67:L71) -> 1026 | M66: =SUM(M67:M71) -> 0 | N66: 342 | O66: 0 | P66: 684 | Q66: 0 | R66: 684 | U66: 72 | V66: =SUM(V67:V71) -> 24 | W66: =SUM(W67:W71) -> 48 | X66: =SUM(X67:X71) -> 0 | Y66: =SUM(Y67:Y71) -> 48 | AA66: =SUM(AA67:AA71) -> 0 | AC66: =SUM(AC67:AC71) -> 30 | AD66: =SUM(AD67:AD71) -> 60 | AE66: =SUM(AE67:AE71) -> 0 | AF66: =SUM(AF67:AF71) -> 60 | AH66: =SUM(AH67:AH71) -> 0 | AJ66: =SUM(AJ67:AJ71) -> 24 | AK66: =SUM(AK67:AK71) -> 48 | AL66: =SUM(AL67:AL71) -> 0 | AM66: =SUM(AM67:AM71) -> 48 | AO66: =SUM(AO67:AO71) -> 0 | AQ66: =SUM(AQ67:AQ71) -> 30 | AR66: =SUM(AR67:AR71) -> 60 | AS66: =SUM(AS67:AS71) -> 0 | AT66: =SUM(AT67:AT71) -> 60 | AV66: =SUM(AV67:AV71) -> 0 | AX66: =SUM(AX67:AX71) -> 40 | AY66: =SUM(AY67:AY71) -> 80 | AZ66: =SUM(AZ67:AZ71) -> 0 | BA66: =SUM(BA67:BA71) -> 80 | BC66: =SUM(BC67:BC71) -> 0 | BE66: =SUM(BE67:BE71) -> 70 | BF66: =SUM(BF67:BF71) -> 140 | BG66: =SUM(BG67:BG71) -> 0 | BH66: =SUM(BH67:BH71) -> 140 | BJ66: =SUM(BJ67:BJ71) -> 0 | BL66: =SUM(BL67:BL71) -> 48 | BM66: =SUM(BM67:BM71) -> 96 | BN66: =SUM(BN67:BN71) -> 0 | BO66: =SUM(BO67:BO71) -> 96 | BQ66: =SUM(BQ67:BQ71) -> 0 | BS66: =SUM(BS67:BS71) -> 76 | BT66: =SUM(BT67:BT71) -> 152 | BU66: =SUM(BU67:BU71) -> 0 | BV66: =SUM(BV67:BV71) -> 152 | BX66: =SUM(BX67:BX71) -> 0 | EC66: =SUM(EC67:EC71) -> 684 | ED66: =SUM(ED67:ED71) -> 0
A67: УП. 01 | B67: Концертмейстерская подготовка | C67: инд | J67: 12345678 | L67: =N67+P67 -> 215 | N67: =V67+AC67+AJ67+AQ67+AX67+BE67+BL67+BS67 -> 72 | P67: =W67+AD67+AK67+AR67+AY67+BF67+BM67+BT67 -> 143 | Q67: 0 | R67: 143 | U67: 24 | V67: 8 | W67: 16 | Y67: 16 | AB67: 30 | AC67: 10 | AD67: 20 | AF67: 20 | AI67: 24 | AJ67: 8 | AK67: 16 | AM67: 16 | AP67: 30 | AQ67: 10 | AR67: 20 | AT67: 20 | AW67: 24 | AX67: 8 | AY67: 16 | BA67: 16 | BD67: 30 | BE67: 10 | BF67: 20 | BH67: 20 | BK67: 24 | BL67: 8 | BM67: 16 | BO67: 16 | BR67: 29 | BS67: 10 | BT67: 19 | BV67: 19 | EC67: 143
A68: УП. 02 | B68: Фортепианный дуэт | C68: мг | F68: 2 | J68: 1 | L68: =N68+P68 -> 54 | N68: =V68+AC68+AJ68+AQ68+AX68+BE68+BL68+BS68 -> 18 | P68: 36 | Q68: 0 | R68: 36 | U68: 24 | V68: 8 | W68: 16 | Y68: 16 | AB68: 30 | AC68: 10 | AD68: 20 | AF68: 20 | EC68: 36
A69: УП. 03 | B69: Чтение с листа и транспозиция | C69: инд | F69: 6 | J69: 1234578 | L69: =N69+P69 -> 244 | N69: =V69+AC69+AJ69+AQ69+AX69+BE69+BL69+BS69 -> 81 | P69: 163 | Q69: 0 | R69: 163 | U69: 24 | V69: 8 | W69: 16 | Y69: 16 | AB69: 30 | AC69: 10 | AD69: 20 | AF69: 20 | AI69: 24 | AJ69: 8 | AK69: 16 | AM69: 16 | AP69: 30 | AQ69: 10 | AR69: 20 | AT69: 20 | AW69: 24 | AX69: 8 | AY69: 16 | BA69: 16 | BD69: 60 | BE69: 20 | BF69: 40 | BH69: 40 | BK69: 24 | BL69: 8 | BM69: 16 | BO69: 16 | BR69: 29 | BS69: 9 | BT69: 19 | BV69: 19 | EC69: 163
A70: УП. 04 | B70: Ансамблевое исполнительство | C70: инд | F70: 5 | J70: 34678 | L70: =N70+P70 -> 300 | N70: =V70+AC70+AJ70+AQ70+AX70+BE70+BL70+BS70 -> 100 | P70: 200 | Q70: 0 | R70: 200 | AI70: 24 | AJ70: 8 | AK70: 16 | AM70: 16 | AP70: 30 | AQ70: 10 | AR70: 20 | AT70: 20 | AW70: 24 | AX70: 8 | AY70: 16 | BA70: 16 | BD70: 60 | BE70: 20 | BF70: 40 | BH70: 40 | BK70: 48 | BL70: 16 | BM70: 32 | BO70: 32 | BR70: 114 | BS70: 38 | BT70: 76 | BV70: 76 | EC70: 200
A71: УП. 05 | B71: Педагогическая работа | C71: инд | F71: 6 | J71: 578 | L71: =N71+P71 -> 213 | N71: =V71+AC71+AJ71+AQ71+AX71+BE71+BL71+BS71 -> 71 | P71: 142 | Q71: 0 | R71: 142 | AW71: 48 | AX71: 16 | AY71: 32 | BA71: 32 | BD71: 60 | BE71: 20 | BF71: 40 | BH71: 40 | BK71: 48 | BL71: 16 | BM71: 32 | BO71: 32 | BR71: 57 | BS71: 19 | BT71: 38 | BV71: 38 | EC71: 142
A72: ПП | B72: Производственная (по профилю специальности) практика | N72: час | P72: =P73+P74 -> 180 | Q72: нед | R72: =R73+R74 -> 5 | W72: =SUM(W73:W76) -> 20 | Y72: =SUM(Y73:Y74) -> 20 | AD72: =SUM(AD73:AD74) -> 25 | AF72: =SUM(AF73:AF74) -> 25 | AK72: =SUM(AK73:AK74) -> 20 | AM72: =SUM(AM73:AM74) -> 20 | AR72: =SUM(AR73:AR74) -> 25 | AT72: =SUM(AT73:AT74) -> 25 | AY72: =SUM(AY73:AY74) -> 20 | BA72: =SUM(BA73:BA74) -> 20 | BF72: =SUM(BF73:BF74) -> 25 | BH72: =SUM(BH73:BH74) -> 25 | BM72: =SUM(BM73:BM74) -> 20 | BO72: =SUM(BO73:BO74) -> 20 | BT72: =SUM(BT73:BT74) -> 25 | BV72: =SUM(BV73:BV74) -> 25 | BY72: час | CB72: нед | CF72: час | CI72: нед | CM72: час | CP72: нед | CT72: час | CW72: нед | DA72: час | DD72: нед | DH72: час | DK72: нед | DO72: час | DR72: нед | DV72: час | DY72: нед
A73: ПП.01 | B73: Исполнительская (по профилю специальности) | N73: час | P73: =W73+AD73+AK73+AR73+AY73+BF73+BM73+BT73 -> 144 | Q73: нед | R73: 4 | W73: 16 | Y73: 16 | AD73: 20 | AF73: 20 | AK73: 16 | AM73: 16 | AR73: 20 | AT73: 20 | AY73: 16 | BA73: 16 | BF73: 20 | BH73: 20 | BM73: 16 | BO73: 16 | BT73: 20 | BV73: 20
A74: ПП.02 | B74: Педагогическая практика | N74: час | P74: =W74+AD74+AK74+AR74+AY74+BF74+BM74+BT74 -> 36 | Q74: нед | R74: 1 | W74: 4 | Y74: 4 | AD74: 5 | AF74: 5 | AK74: 4 | AM74: 4 | AR74: 5 | AT74: 5 | AY74: 4 | BA74: 4 | BF74: 5 | BH74: 5 | BM74: 4 | BO74: 4 | BT74: 5 | BV74: 5
A75: ПДП.00 | B75: Преддипломная практика | N75: час | P75: =W75+AD75+AK75+AR75+AY75+BF75+BM75+BT75 -> 36 | Q75: нед | R75: 1 | BM75: 16 | BT75: 20
A76: ГИА.00 | B76: Государственная (итоговая) аттестация | Q76: нед | R76: 4 | BU76: нед | BV76: 4 | CB76: нед | CI76: нед | CP76: нед | CW76: нед | DD76: нед | DK76: нед | DR76: нед | DY76: нед
A77: ГИА.01 | B77: Подготовка выпускной квалификационной работы | Q77: нед | R77: 1 | BU77: нед | BV77: 1 | CB77: нед | CI77: нед | CP77: нед | CW77: нед | DD77: нед | DK77: нед | DR77: нед | DY77: нед
A78: ГИА.02 | B78: Защита выпускной квалификационной работы | Q78: нед | R78: 1 | BU78: нед | BV78: 1
A79: ГИА.03 | B79: Государственный экзамен(по видам инструментов) | Q79: нед | R79: 1 | BU79: нед | BV79: 1 | CB79: нед | CI79: нед | CP79: нед | CW79: нед | DD79: нед | DK79: нед | DR79: нед | DY79: нед
A80: ГИА.04 | B80: Государственный экзамен | Q80: нед | R80: 1 | BU80: нед | BV80: 1 | CB80: нед | CI80: нед | CP80: нед | CW80: нед | DD80: нед | DK80: нед | DR80: нед | DY80: нед
B81: ВСЕГО ПО ДИСЦИПЛИНАМ И МДК | D81: 28 | E81: 8 | F81: 24 | G81: =G9+G27+G34+G44+G56+#REF!+G66 ->  | H81: =H9+H27+H34+H44+H56+#REF!+H66 ->  | I81: =I9+I27+I34+I44+I56+#REF!+I66 ->  | J81: 103 | L81: 7722 | N81: 2574 | P81: 5148 | Q81: 2569 | R81: 2579 | U81: 864 | EC81: 4572 | ED81: 576
B82: Экзаменов | U82: 1 | X82: =SUM(IF(IFERROR(MID(D11:D16,SEARCH(1,D11:D16),1),0)="1",1,0),IF(IFERROR(MID(D18:D25,SEARCH(1,D18:D25),1),0)="1",1,0),IF(IFERROR(MID(D28:D32,SEARCH(1,D28:D32),1),0)="1",1,0),IF(IFERROR(MID(D35:D42,SEARCH(1,D35:D42),1),0)="1",1,0),IF(IFERROR(MID(D45:D52,SEARCH(1,D45:D52),1),0)="1",1,0),IF(IFERROR(MID(D57:D65,SEARCH(1,D57:D65),1),0)="1",1,0),IF(IFERROR(MID(#REF!,SEARCH(1,#REF!),1),0)="1",1,0),IF(IFERROR(MID(D67:D71,SEARCH(1,D67:D71),1),0)="1",1,0)) -> 1 | AB82: 4 | AE82: =SUM(IF(IFERROR(MID(D11:D16,SEARCH(2,D11:D16),1),0)="2",1,0),IF(IFERROR(MID(D18:D25,SEARCH(2,D18:D25),1),0)="2",1,0),IF(IFERROR(MID(D28:D32,SEARCH(2,D28:D32),1),0)="2",1,0),IF(IFERROR(MID(D35:D42,SEARCH(2,D35:D42),1),0)="2",1,0),IF(IFERROR(MID(D45:D52,SEARCH(2,D45:D52),1),0)="2",1,0),IF(IFERROR(MID(D57:D65,SEARCH(2,D57:D65),1),0)="2",1,0),IF(IFERROR(MID(#REF!,SEARCH(2,#REF!),1),0)="2",1,0),IF(IFERROR(MID(D67:D71,SEARCH(2,D67:D71),1),0)="2",1,0)) -> 5 | AI82: 1 | AL82: =SUM(IF(IFERROR(MID(D11:D16,SEARCH(3,D11:D16),1),0)="3",1,0),IF(IFERROR(MID(D18:D25,SEARCH(3,D18:D25),1),0)="3",1,0),IF(IFERROR(MID(D28:D32,SEARCH(3,D28:D32),1),0)="3",1,0),IF(IFERROR(MID(D35:D42,SEARCH(3,D35:D42),1),0)="3",1,0),IF(IFERROR(MID(D45:D52,SEARCH(3,D45:D52),1),0)="3",1,0),IF(IFERROR(MID(D57:D65,SEARCH(3,D57:D65),1),0)="3",1,0),IF(IFERROR(MID(#REF!,SEARCH(3,#REF!),1),0)="3",1,0),IF(IFERROR(MID(D67:D71,SEARCH(3,D67:D71),1),0)="3",1,0)) -> 3 | AP82: 5 | AS82: =SUM(IF(IFERROR(MID(D11:D16,SEARCH(4,D11:D16),1),0)="4",1,0),IF(IFERROR(MID(D18:D25,SEARCH(4,D18:D25),1),0)="4",1,0),IF(IFERROR(MID(D28:D32,SEARCH(4,D28:D32),1),0)="4",1,0),IF(IFERROR(MID(D35:D42,SEARCH(4,D35:D42),1),0)="4",1,0),IF(IFERROR(MID(D45:D52,SEARCH(4,D45:D52),1),0)="4",1,0),IF(IFERROR(MID(D57:D65,SEARCH(4,D57:D65),1),0)="4",1,0),IF(IFERROR(MID(#REF!,SEARCH(4,#REF!),1),0)="4",1,0),IF(IFERROR(MID(D67:D71,SEARCH(4,D67:D71),1),0)="4",1,0)) -> 5 | AW82: 1 | AZ82: =SUM(IF(IFERROR(MID(D11:D16,SEARCH(5,D11:D16),1),0)="5",1,0),IF(IFERROR(MID(D18:D25,SEARCH(5,D18:D25),1),0)="5",1,0),IF(IFERROR(MID(D28:D32,SEARCH(5,D28:D32),1),0)="5",1,0),IF(IFERROR(MID(D35:D42,SEARCH(5,D35:D42),1),0)="5",1,0),IF(IFERROR(MID(D45:D52,SEARCH(5,D45:D52),1),0)="5",1,0),IF(IFERROR(MID(D57:D65,SEARCH(5,D57:D65),1),0)="5",1,0),IF(IFERROR(MID(#REF!,SEARCH(5,#REF!),1),0)="5",1,0),IF(IFERROR(MID(D67:D71,SEARCH(5,D67:D71),1),0)="5",1,0)) -> 3 | BD82: 3 | BG82: =SUM(IF(IFERROR(MID(D11:D16,SEARCH(6,D11:D16),1),0)="6",1,0),IF(IFERROR(MID(D18:D25,SEARCH(6,D18:D25),1),0)="6",1,0),IF(IFERROR(MID(D28:D32,SEARCH(6,D28:D32),1),0)="6",1,0),IF(IFERROR(MID(D35:D42,SEARCH(6,D35:D42),1),0)="6",1,0),IF(IFERROR(MID(D45:D52,SEARCH(6,D45:D52),1),0)="6",1,0),IF(IFERROR(MID(D57:D65,SEARCH(6,D57:D65),1),0)="6",1,0),IF(IFERROR(MID(#REF!,SEARCH(6,#REF!),1),0)="6",1,0),IF(IFERROR(MID(D67:D71,SEARCH(6,D67:D71),1),0)="6",1,0)) -> 4 | BK82: 2 | BN82: =SUM(IF(IFERROR(MID(D11:D16,SEARCH(7,D11:D16),1),0)="7",1,0),IF(IFERROR(MID(D18:D25,SEARCH(7,D18:D25),1),0)="7",1,0),IF(IFERROR(MID(D28:D32,SEARCH(7,D28:D32),1),0)="7",1,0),IF(IFERROR(MID(D35:D42,SEARCH(7,D35:D42),1),0)="7",1,0),IF(IFERROR(MID(D45:D52,SEARCH(7,D45:D52),1),0)="7",1,0),IF(IFERROR(MID(D57:D65,SEARCH(7,D57:D65),1),0)="7",1,0),IF(IFERROR(MID(#REF!,SEARCH(7,#REF!),1),0)="7",1,0),IF(IFERROR(MID(D67:D71,SEARCH(7,D67:D71),1),0)="7",1,0)) -> 4 | BR82: 6 | BU82: =SUM(IF(IFERROR(MID(D11:D16,SEARCH(8,D11:D16),1),0)="8",1,0),IF(IFERROR(MID(D18:D25,SEARCH(8,D18:D25),1),0)="8",1,0),IF(IFERROR(MID(D28:D32,SEARCH(8,D28:D32),1),0)="8",1,0),IF(IFERROR(MID(D35:D42,SEARCH(8,D35:D42),1),0)="8",1,0),IF(IFERROR(MID(D45:D52,SEARCH(8,D45:D52),1),0)="8",1,0),IF(IFERROR(MID(D57:D65,SEARCH(8,D57:D65),1),0)="8",1,0),IF(IFERROR(MID(#REF!,SEARCH(8,#REF!),1),0)="8",1,0),IF(IFERROR(MID(D67:D71,SEARCH(8,D67:D71),1),0)="8",1,0)) -> 3
B83: Зачётов | U83: 1 | X83: =SUM(IF(IFERROR(MID(E11:E16,SEARCH(1,E11:E16),1),0)="1",1,0),IF(IFERROR(MID(E18:E25,SEARCH(1,E18:E25),1),0)="1",1,0),IF(IFERROR(MID(E28:E32,SEARCH(1,E28:E32),1),0)="1",1,0),IF(IFERROR(MID(E35:E42,SEARCH(1,E35:E42),1),0)="1",1,0),IF(IFERROR(MID(E45:E52,SEARCH(1,E45:E52),1),0)="1",1,0),IF(IFERROR(MID(E57:E65,SEARCH(1,E57:E65),1),0)="1",1,0),IF(IFERROR(MID(#REF!,SEARCH(1,#REF!),1),0)="1",1,0),IF(IFERROR(MID(E67:E71,SEARCH(1,E67:E71),1),0)="1",1,0)) -> 1 | AB83: 4 | AE83: =SUM(IF(IFERROR(MID(E11:E16,SEARCH(2,E11:E16),1),0)="2",1,0),IF(IFERROR(MID(E18:E25,SEARCH(2,E18:E25),1),0)="2",1,0),IF(IFERROR(MID(E28:E32,SEARCH(2,E28:E32),1),0)="2",1,0),IF(IFERROR(MID(E35:E42,SEARCH(2,E35:E42),1),0)="2",1,0),IF(IFERROR(MID(E45:E52,SEARCH(2,E45:E52),1),0)="2",1,0),IF(IFERROR(MID(E57:E65,SEARCH(2,E57:E65),1),0)="2",1,0),IF(IFERROR(MID(#REF!,SEARCH(2,#REF!),1),0)="2",1,0),IF(IFERROR(MID(E67:E71,SEARCH(2,E67:E71),1),0)="2",1,0)) -> 1 | AI83: 1 | AL83: =SUM(IF(IFERROR(MID(E11:E16,SEARCH(3,E11:E16),1),0)="3",1,0),IF(IFERROR(MID(E18:E25,SEARCH(3,E18:E25),1),0)="3",1,0),IF(IFERROR(MID(E28:E32,SEARCH(3,E28:E32),1),0)="3",1,0),IF(IFERROR(MID(E35:E42,SEARCH(3,E35:E42),1),0)="3",1,0),IF(IFERROR(MID(E45:E52,SEARCH(3,E45:E52),1),0)="3",1,0),IF(IFERROR(MID(E57:E65,SEARCH(3,E57:E65),1),0)="3",1,0),IF(IFERROR(MID(#REF!,SEARCH(3,#REF!),1),0)="3",1,0),IF(IFERROR(MID(E67:E71,SEARCH(3,E67:E71),1),0)="3",1,0)) -> 1 | AP83: 5 | AS83: =SUM(IF(IFERROR(MID(E11:E16,SEARCH(4,E11:E16),1),0)="4",1,0),IF(IFERROR(MID(E18:E25,SEARCH(4,E18:E25),1),0)="4",1,0),IF(IFERROR(MID(E28:E32,SEARCH(4,E28:E32),1),0)="4",1,0),IF(IFERROR(MID(E35:E42,SEARCH(4,E35:E42),1),0)="4",1,0),IF(IFERROR(MID(E45:E52,SEARCH(4,E45:E52),1),0)="4",1,0),IF(IFERROR(MID(E57:E65,SEARCH(4,E57:E65),1),0)="4",1,0),IF(IFERROR(MID(#REF!,SEARCH(4,#REF!),1),0)="4",1,0),IF(IFERROR(MID(E67:E71,SEARCH(4,E67:E71),1),0)="4",1,0)) -> 1 | AW83: 1 | AZ83: =SUM(IF(IFERROR(MID(E11:E16,SEARCH(5,E11:E16),1),0)="5",1,0),IF(IFERROR(MID(E18:E25,SEARCH(5,E18:E25),1),0)="5",1,0),IF(IFERROR(MID(E28:E32,SEARCH(5,E28:E32),1),0)="5",1,0),IF(IFERROR(MID(E35:E42,SEARCH(5,E35:E42),1),0)="5",1,0),IF(IFERROR(MID(E45:E52,SEARCH(5,E45:E52),1),0)="5",1,0),IF(IFERROR(MID(E57:E65,SEARCH(5,E57:E65),1),0)="5",1,0),IF(IFERROR(MID(#REF!,SEARCH(5,#REF!),1),0)="5",1,0),IF(IFERROR(MID(E67:E71,SEARCH(5,E67:E71),1),0)="5",1,0)) -> 1 | BD83: 3 | BG83: =SUM(IF(IFERROR(MID(E11:E16,SEARCH(6,E11:E16),1),0)="6",1,0),IF(IFERROR(MID(E18:E25,SEARCH(6,E18:E25),1),0)="6",1,0),IF(IFERROR(MID(E28:E32,SEARCH(6,E28:E32),1),0)="6",1,0),IF(IFERROR(MID(E35:E42,SEARCH(6,E35:E42),1),0)="6",1,0),IF(IFERROR(MID(E45:E52,SEARCH(6,E45:E52),1),0)="6",1,0),IF(IFERROR(MID(E57:E65,SEARCH(6,E57:E65),1),0)="6",1,0),IF(IFERROR(MID(#REF!,SEARCH(6,#REF!),1),0)="6",1,0),IF(IFERROR(MID(E67:E71,SEARCH(6,E67:E71),1),0)="6",1,0)) -> 1 | BK83: 2 | BN83: =SUM(IF(IFERROR(MID(E11:E16,SEARCH(7,E11:E16),1),0)="7",1,0),IF(IFERROR(MID(E18:E25,SEARCH(7,E18:E25),1),0)="7",1,0),IF(IFERROR(MID(E28:E32,SEARCH(7,E28:E32),1),0)="7",1,0),IF(IFERROR(MID(E35:E42,SEARCH(7,E35:E42),1),0)="7",1,0),IF(IFERROR(MID(E45:E52,SEARCH(7,E45:E52),1),0)="7",1,0),IF(IFERROR(MID(E57:E65,SEARCH(7,E57:E65),1),0)="7",1,0),IF(IFERROR(MID(#REF!,SEARCH(7,#REF!),1),0)="7",1,0),IF(IFERROR(MID(E67:E71,SEARCH(7,E67:E71),1),0)="7",1,0)) -> 1 | BR83: 6 | BU83: =SUM(IF(IFERROR(MID(E11:E16,SEARCH(8,E11:E16),1),0)="8",1,0),IF(IFERROR(MID(E18:E25,SEARCH(8,E18:E25),1),0)="8",1,0),IF(IFERROR(MID(E28:E32,SEARCH(8,E28:E32),1),0)="8",1,0),IF(IFERROR(MID(E35:E42,SEARCH(8,E35:E42),1),0)="8",1,0),IF(IFERROR(MID(E45:E52,SEARCH(8,E45:E52),1),0)="8",1,0),IF(IFERROR(MID(E57:E65,SEARCH(8,E57:E65),1),0)="8",1,0),IF(IFERROR(MID(#REF!,SEARCH(8,#REF!),1),0)="8",1,0),IF(IFERROR(MID(E67:E71,SEARCH(8,E67:E71),1),0)="8",1,0)) -> 1
B84: Дифференицрованных зачётов | U84: 1 | X84: =SUM(IF(IFERROR(MID(F11:F16,SEARCH(1,F11:F16),1),0)="1",1,0),IF(IFERROR(MID(F18:F25,SEARCH(1,F18:F25),1),0)="1",1,0),IF(IFERROR(MID(F28:I32,SEARCH(1,F28:I32),1),0)="1",1,0),IF(IFERROR(MID(F35:F42,SEARCH(1,F35:F42),1),0)="1",1,0),IF(IFERROR(MID(F45:F52,SEARCH(1,F45:I52),1),0)="1",1,0),IF(IFERROR(MID(F57:F65,SEARCH(1,F57:G65),1),0)="1",1,0),IF(IFERROR(MID(#REF!,SEARCH(1,#REF!),1),0)="1",1,0),IF(IFERROR(MID(F67:F71,SEARCH(1,F67:F71),1),0)="1",1,0)) -> 2 | AB84: 4 | AE84: =SUM(IF(IFERROR(MID(F11:F16,SEARCH(2,F11:F16),1),0)="2",1,0),IF(IFERROR(MID(F18:F25,SEARCH(2,F18:F25),1),0)="2",1,0),IF(IFERROR(MID(F28:H32,SEARCH(2,F28:I32),1),0)="2",1,0),IF(IFERROR(MID(F35:F42,SEARCH(2,F35:F42),1),0)="2",1,0),IF(IFERROR(MID(F45:I52,SEARCH(2,F45:F52),1),0)="2",1,0),IF(IFERROR(MID(F57:F65,SEARCH(2,F57:F65),1),0)="2",1,0),IF(IFERROR(MID(#REF!,SEARCH(2,#REF!),1),0)="2",1,0),IF(IFERROR(MID(F67:F71,SEARCH(2,F67:F71),1),0)="2",1,0)) -> 3 | AI84: 1 | AL84: =SUM(IF(IFERROR(MID(F11:F16,SEARCH(3,F11:F16),1),0)="3",1,0),IF(IFERROR(MID(F18:F25,SEARCH(3,F18:F25),1),0)="3",1,0),IF(IFERROR(MID(F28:H32,SEARCH(3,F28:F32),1),0)="3",1,0),IF(IFERROR(MID(F35:F42,SEARCH(3,F35:F42),1),0)="3",1,0),IF(IFERROR(MID(F45:I52,SEARCH(3,F45:F52),1),0)="3",1,0),IF(IFERROR(MID(F57:F65,SEARCH(3,F57:F65),1),0)="3",1,0),IF(IFERROR(MID(#REF!,SEARCH(3,#REF!),1),0)="3",1,0),IF(IFERROR(MID(F67:F71,SEARCH(3,F67:F71),1),0)="3",1,0)) -> 1 | AP84: 5 | AS84: 6 | AW84: 1 | AZ84: =SUM(IF(IFERROR(MID(F11:F16,SEARCH(5,F11:F16),1),0)="5",1,0),IF(IFERROR(MID(F18:F25,SEARCH(5,F18:F25),1),0)="5",1,0),IF(IFERROR(MID(F28:F32,SEARCH(5,F28:F32),1),0)="5",1,0),IF(IFERROR(MID(F35:F42,SEARCH(5,F35:F42),1),0)="5",1,0),IF(IFERROR(MID(F45:F52,SEARCH(5,F45:F52),1),0)="5",1,0),IF(IFERROR(MID(F57:F65,SEARCH(5,F57:F65),1),0)="5",1,0),IF(IFERROR(MID(#REF!,SEARCH(5,#REF!),1),0)="5",1,0),IF(IFERROR(MID(F67:F71,SEARCH(5,F67:F71),1),0)="5",1,0)) -> 2 | BD84: 3 | BG84: =SUM(IF(IFERROR(MID(F11:F16,SEARCH(6,F11:F16),1),0)="6",1,0),IF(IFERROR(MID(F18:F25,SEARCH(6,F18:F25),1),0)="6",1,0),IF(IFERROR(MID(F28:F32,SEARCH(6,F28:F32),1),0)="6",1,0),IF(IFERROR(MID(F35:F42,SEARCH(6,F35:F42),1),0)="6",1,0),IF(IFERROR(MID(F45:I52,SEARCH(6,F45:F52),1),0)="6",1,0),IF(IFERROR(MID(F57:F65,SEARCH(6,F57:F65),1),0)="6",1,0),IF(IFERROR(MID(#REF!,SEARCH(6,#REF!),1),0)="6",1,0),IF(IFERROR(MID(F67:F71,SEARCH(6,F67:F71),1),0)="6",1,0)) -> 3 | BK84: 2 | BN84: =SUM(IF(IFERROR(MID(F11:F16,SEARCH(7,F11:F16),1),0)="7",1,0),IF(IFERROR(MID(F18:F25,SEARCH(7,F18:F25),1),0)="7",1,0),IF(IFERROR(MID(F28:F32,SEARCH(7,F28:F32),1),0)="7",1,0),IF(IFERROR(MID(F35:F42,SEARCH(7,F35:F42),1),0)="7",1,0),IF(IFERROR(MID(F45:F52,SEARCH(7,F45:I52),1),0)="7",1,0),IF(IFERROR(MID(F57:F65,SEARCH(7,F57:F65),1),0)="7",1,0),IF(IFERROR(MID(#REF!,SEARCH(7,#REF!),1),0)="7",1,0),IF(IFERROR(MID(F67:F71,SEARCH(7,F67:F71),1),0)="7",1,0)) -> 2 | BR84: 6 | BU84: =SUM(IF(IFERROR(MID(F11:F16,SEARCH(8,F11:F16),1),0)="8",1,0),IF(IFERROR(MID(F18:F25,SEARCH(8,F18:F25),1),0)="8",1,0),IF(IFERROR(MID(F28:F32,SEARCH(8,F28:F32),1),0)="8",1,0),IF(IFERROR(MID(F35:F42,SEARCH(8,F35:F42),1),0)="8",1,0),IF(IFERROR(MID(F45:F52,SEARCH(8,F45:I52),1),0)="8",1,0),IF(IFERROR(MID(F57:F65,SEARCH(8,F57:F65),1),0)="8",1,0),IF(IFERROR(MID(#REF!,SEARCH(8,#REF!),1),0)="8",1,0),IF(IFERROR(MID(F67:F71,SEARCH(8,F67:F71),1),0)="8",1,0)) -> 5
B85: Контрольных работ (итоговые письм. классные)
B86: Контрольных работ (домашние)

Sheet Кабинеты
B1: № | C1: Наименование
B2: 1 | C2: Кабинеты: русского языка и литературы
B3: 2 | C3: математики и информатики;
B4: 3 | C4: истории, географии и обществознания;
B5: 4 | C5: гуманитарных и социально-экономических дисциплин;
B6: 5 | C6: мировой художественной культуры;
B7: 6 | C7: музыкально-теоретических дисциплин;
B8: 7 | C8: музыкальной литературы.
B9: 8 | C9: Учебные классы: для групповых и индивидуальных занятий;
B10: 9 | C10: для проведения оркестровых и ансамблевых занятий;
B11: 10 | C11: для занятий по междисциплинарному курсу «Оркестровый класс, изучение родственных инструментов» со специализированным оборудованием;
B12: 11 | C12: для занятий по междисциплинарному курсу «Дирижирование и чтение оркестровых партитур», оснащенные зеркалами и двумя роялями.
B13: 12 | C13: Спортивный комплекс: спортивный зал; место для стрельбы.
B14: 13 | C14: Залы: концертный зал от 100 посадочных мест с концертными роялями, пультами и звукотехническим оборудованием; малый концертный зал от 30 посадочных мест с концертным роялем
B15: 14 | C15: библиотека,читальный зал с выходом в интернет

Sheet Start (hidden)
